[Event "US Masters 2024"]
[Site "Charlotte"]
[Date "2024.11.30"]
[Round "5.14"]
[White "Stremavicius, Titas"]
[Black "Lee, Alice"]
[Result "1/2-1/2"]
[ECO "E05"]
[WhiteElo "2545"]
[BlackElo "2398"]
[Annotator "TA"]
[PlyCount "100"]
[EventDate "2024.09.23"]
[EventType "swiss"]
[EventCountry "USA"]
[SourceTitle "playchess.com"]
[Source "ChessBase"]
[SourceQuality "1"]
[TimeControl "5400+30"]

{[%evp 18,100,20,12,79,64,108,72,59,66,47,50,64,62,77,69,65,73,82,95,163,89,71,59,59,56,83,75,67,66,61,62,61,55,72,74,82,79,88,72,72,59,60,37,39,37,37,39,43,42,41,25,43,8,10,9,22,8,8,8,8,8,8,8,8,8,8,8,8,8,8,0,0,0,0,0,8,8,8,8,8,8,8,8,8]} 1. c4 {[%emt 0:01:43]} e6 {[%emt 0:02:31]} 2. Nf3 {[%emt 0:01:09]} d5 {[%emt 0:00:13]} 3. g3 {[%emt 0:00:03]} Nf6 {[%emt 0:00:09]} 4. Bg2 {[%emt 0:00:05]} Be7 {[%emt 0:00:06]} 5. d4 {[%emt 0:01:04]} O-O {[%emt 0:00:10]} 6. O-O {[%emt 0:00:06]} dxc4 {[%emt 0:00:05]} 7. Qc2 {[%emt 0:00:04]} a6 {[%emt 0:00:05]} 8. a4 {[%emt 0:00:07]} Bd7 {[%emt 0:00:25]} 9. Rd1 {[%emt 0:01:24]} Bc6 {[%emt 0:00:40]} 10. Nc3 {[%emt 0:00:08]} Qe8 {[%emt 0:19:51]} (10... Bxf3 $11 {keeps the balance.} 11. exf3 Nc6) 11. e4 $16 {[%emt 0:08:45]} b5 {[%emt 0:02:39]} 12. d5 {[%emt 0:14:17]} Bb7 {[%emt 0:10:17] White is better.} 13. axb5 {[%emt 0:16:23]} axb5 {[%emt 0:01:04]} 14. Rxa8 {[%emt 0:00:07]} Bxa8 {[%emt 0:00:05]} 15. Nd4 {[%emt 0:03:32]} exd5 {[%emt 0:15:13]} 16. Ndxb5 {[%emt 0:04:05]} Na6 {[%emt 0:06:21]} (16... c6 $2 17. Nc7 Qd8 18. Nxa8 $18) 17. exd5 {[%emt 0:02:43]} Bc5 {[%emt 0:03:57]} 18. Qf5 {[%emt 0:08:08]} c6 {[%emt 0:05:08] [#]} (18... h5 $16) 19. dxc6 {[%emt 0:05:49]} ({White must play} 19. Bh6 $1 $18 Qd7 (19... cxb5 $2 {loses.} 20. Bxg7 Kxg7 21. Qg5+ Kh8 22. Qxf6+ Kg8 23. Qxa6 $18) 20. Qg5 (20. Qxd7 Nxd7 21. dxc6 Ndb8 $18)) 19... Bxc6 {[%emt 0:00:07]} 20. Bxc6 {[%emt 0:05:11]} Qxc6 {[%emt 0:00:03]} 21. Bg5 {[%emt 0:00:07]} Ne8 {[%emt 0:04:11]} 22. Qe4 {[%emt 0:06:51]} Qb6 {[%emt 0:02:25]} 23. Bd8 {[%emt 0:02:44] White is much more active.} ({Much worse is} 23. Qxc4 Bxf2+ 24. Kf1 Bc5 $11) 23... Nf6 {[%emt 0:03:49][%cal Be8f6,Bf6e4,Be4c3][%mdl 32]} 24. Bxb6 {[%emt 0:00:46]} Nxe4 {[%emt 0:00:02]} 25. Bxc5 {[%emt 0:03:21]} Naxc5 {[%emt 0:00:06]} 26. Rd4 {[%emt 0:00:07][%csl LRc4,LRe4]} f5 {[%emt 0:03:27]} 27. Rxc4 {[%emt 0:00:55]} Rb8 {[%emt 0:01:42]} 28. Nd4 {[%emt 0:02:21]} Rxb2 {[%emt 0:01:22]} 29. Nxf5 {[%emt 0:00:09]} Nxc3 {[%emt 0:02:19]} 30. Rxc5 {[%emt 0:01:00][%mdl 4096] Endgame. KRN-KRN} Ne4 {[%emt 0:00:22][%csl LRc5,LRf2]} 31. Rc8+ {[%emt 0:05:36]} Kf7 {[%emt 0:00:01]} 32. Rc7+ {[%emt 0:00:03]} Kf6 {[%emt 0:00:39]} 33. Nxg7 {[%emt 0:00:32]} Nxf2 {[%emt 0:00:16]} 34. Nh5+ {[%emt 0:00:05]} Kg5 {[%emt 0:01:57]} 35. Nf4 {[%emt 0:00:23] Inhibits Nh3+.} Kg4 {[%emt 0:02:31] The position is equal.} 36. Kf1 {[%emt 0:02:01]} (36. Rxh7 {leads to mate.} Kf3) 36... Ne4 {[%emt 0:05:05]} 37. Ne2 {[%emt 0:00:48][%cal Oc7e7]} Rb1+ {[%emt 0:01:58]} 38. Kg2 {[%emt 0:00:02][%cal Oc7c4] [#] Rc4! is the strong threat.} Rb2 $1 {[%emt 0:00:08]} 39. h3+ {[%emt 0:01:40]} Kf5 {[%emt 0:00:08]} 40. g4+ {[%emt 0:00:54]} Kg6 {[%emt 0:01:05]} 41. Kf1 {[%emt 0:00:44]} Rb1+ {[%emt 0:00:10]} 42. Nc1 {[%emt 0:00:02]} h5 {[%emt 0:00:59]} 43. gxh5+ {[%emt 0:01:26]} Kxh5 {[%emt 0:00:01]} 44. Kg2 {[%emt 0:00:11]} Rb2+ {[%emt 0:02:10]} 45. Kf3 {[%emt 0:00:03]} Ng5+ {[%emt 0:00:10]} 46. Kg3 {[%emt 0:00:06]} Rb6 {[%emt 0:00:32]} 47. Rc5 {[%emt 0:00:41]} Re6 {[%emt 0:00:52]} 48. h4 {[%emt 0:00:46]} Re3+ {[%emt 0:00:16]} 49. Kf2 {[%emt 0:00:21]} Rf3+ {[%emt 0:00:05]} 50. Ke2 {[%emt 0:00:04]} Kxh4 {[%emt 0:00:05] Weighted Error Value: White=0.07 (flawless) /Black=0.11 (very precise) .  Mistake:       	White=1     	Black=1      Inaccurate:     	White=2     	Black=2      OK:         	White=18    	Black=21     Best:        	White=4     	Black=1      Strong:       	---       	Black=1} 1/2-1/2

[Event "US Masters 2024"]
[Site "Charlotte"]
[Date "2024.11.30"]
[Round "5.15"]
[White "Harsha Bharathakoti"]
[Black "Zhao, Erick"]
[Result "1/2-1/2"]
[ECO "D85"]
[WhiteElo "2531"]
[BlackElo "2387"]
[Annotator "TA"]
[PlyCount "47"]
[EventDate "2024.09.23"]
[EventType "swiss"]
[EventCountry "USA"]
[SourceTitle "playchess.com"]
[Source "ChessBase"]
[SourceQuality "1"]
[TimeControl "5400+30"]

{[%evp 9,47,16,46,45,59,6,69,62,58,74,80,56,51,55,82,62,60,39,31,25,62,38,18,20,29,13,22,13,24,0,-6,-3,0,-9,-2,-14,-12,-12,0,0]} 1. d4 {[%emt 0:06:17]} Nf6 {[%emt 0:00:12][%cal Bg8f6,Bf6d5,Bd5b4,Bb4d3][%mdl 32]} 2. c4 {[%emt 0:00:10]} g6 {[%emt 0:00:06]} 3. Nc3 {[%emt 0:00:33]} d5 {[%emt 0:00:05]} 4. cxd5 {[%emt 0:00:17]} Nxd5 {[%emt 0:00:05]} 5. Bd2 {[%emt 0:00:06]} c5 {[%emt 0:01:20]} 6. dxc5 {[%emt 0:00:06]} Bg7 {[%emt 0:09:53]} 7. Qc1 {[%emt 0:00:29]} (7. Qb3 $1 $14 Nf6 8. Nf3) 7... Na6 {[%emt 0:08:54]} (7... Nf6 $11) 8. e4 $14 {[%emt 0:06:53] White is slightly better.} Ndb4 {[%emt 0:05:34]} 9. a3 $1 {[%emt 0:28:54]} Nd3+ {[%emt 0:07:11]} 10. Bxd3 {[%emt 0:00:06]} Qxd3 {[%emt 0:00:05]} 11. b4 {[%emt 0:00:15]} b6 {[%emt 0:08:35]} 12. Nge2 {[%emt 0:23:14] Threatens to win with cxb6.} bxc5 {[%emt 0:09:51]} 13. O-O {[%emt 0:03:29] Hoping for Rd1.} O-O {[%emt 0:01:27]} 14. Bh6 {[%emt 0:10:10]} cxb4 {[%emt 0:04:47]} 15. Bxg7 {[%emt 0:02:21]} (15. axb4 {seems wilder.} Qc4 16. Nd5 Qxc1 17. Nxe7+ Kh8 18. Bxg7+ Kxg7 19. Rfxc1 Nxb4 20. Nxc8 Rfxc8 21. Rxc8 Rxc8 22. Rxa7 Nd3 23. Kf1) 15... Kxg7 {[%emt 0:00:03]} 16. axb4 {[%emt 0:00:24][%cal Ba3b4,Bb4b5][%mdl 32] Black should prevent Rd1.} Qc4 {[%emt 0:00:51]} (16... Nxb4 $6 17. Qb2 Rb8 18. Nd5+ (18. Rxa7 $2 Nc6 $19) 18... f6 19. Nxb4 $18) 17. b5 {[%emt 0:10:30]} Nc5 {[%emt 0:00:52][%cal Oc5b3]} 18. Qb2 {[%emt 0:00:55] [#] Nd1+ would now be deadly.} (18. Qf4 {with more complications.} Be6 19. Rfd1 Nb3 20. Ra6) 18... e5 {[%emt 0:03:18][%cal Oc8e6]} 19. Ra5 {[%emt 0:01:25]} Bb7 {[%emt 0:00:53] The position is equal.} 20. f3 {[%emt 0:00:10]} Rfd8 {[%emt 0:01:45]} 21. Qa2 {[%emt 0:01:07]} Qd3 {[%emt 0:02:04]} 22. Kf2 {[%emt 0:02:08][%cal Of1d1] [#] Inhibits Qe3+. Black must now prevent Rd1!} ({Much weaker is} 22. Rxa7 Qe3+ 23. Kh1 Nd3 24. Rxa8 Rxa8 $17) 22... Qd6 {[%emt 0:00:33] Strongly threatening ...Qb6.} 23. Kg1 $1 {[%emt 0:00:17]} Qd3 {[%emt 0:05:08]} 24. Kf2 {[%emt 0:00:03] Prevents Qe3+.   Weighted Error Value: White=0.11 (very precise) /Black=0.11 (very precise) .  Mistake:       	White=1     	Black=1      Inaccurate:     	---       	Black=1      OK:         	White=5     	Black=8      Best:        	White=2     	Black=1      Strong:       	White=2     	---} ({Don't play} 24. Rxa7 Qe3+ 25. Kh1 Nd3 $19) 1/2-1/2

[Event "US Masters 2024"]
[Site "Charlotte"]
[Date "2024.11.29"]
[Round "5.16"]
[White "Aarav Dengla"]
[Black "Parkhov, Yair"]
[Result "1/2-1/2"]
[ECO "B86"]
[WhiteElo "2390"]
[BlackElo "2523"]
[Annotator "TA"]
[PlyCount "34"]
[EventDate "2024.09.23"]
[EventType "swiss"]
[EventCountry "USA"]
[SourceTitle "playchess.com"]
[Source "ChessBase"]
[SourceQuality "1"]
[TimeControl "5400+30"]

{[%evp 15,34,0,0,-12,-19,-16,-13,-9,-13,-33,-27,-60,-33,-46,15,10,18,19,15,13,17]} 1. e4 {[%emt 0:00:01]} c5 {[%emt 0:09:33]} 2. Nf3 {[%emt 0:00:07]} d6 {[%emt 0:00:05]} 3. d4 {[%emt 0:00:10]} cxd4 {[%emt 0:00:06]} 4. Nxd4 {[%emt 0:00:06]} Nf6 {[%emt 0:00:04]} 5. Nc3 {[%emt 0:00:08]} a6 {[%emt 0:00:04]} 6. Bc4 {[%emt 0:00:10]} e6 {[%emt 0:00:54]} 7. a3 {[%emt 0:00:15]} Be7 {[%emt 0:12:56]} 8. Ba2 {[%emt 0:00:02]} O-O {[%emt 0:00:34]} 9. g4 {[%emt 0:00:02]} d5 {[%emt 0:02:50]} 10. exd5 {[%emt 0:00:12]} Nxd5 {[%emt 0:02:57]} 11. Nxd5 {[%emt 0:00:15]} exd5 {[%emt 0:00:04]} 12. Be3 {[%emt 0:00:15]} Nc6 {[%emt 0:00:46]} 13. Qe2 {[%emt 0:00:02]} Nxd4 {[%emt 0:13:52]} 14. Bxd4 {[%emt 0:00:02]} Re8 {[%emt 0:00:15]} ({Black should play} 14... Bg5 $1 $15 15. Be3 Bxe3 16. fxe3 Qh4+ 17. Qf2 Qxf2+ (17... Qxg4 18. Rg1 $17) 18. Kxf2 Bxg4) 15. O-O-O $11 {[%emt 0:00:18] The position is equal.} Bg5+ {[%emt 0:00:23]} 16. Be3 {[%emt 0:00:01]} Bxe3+ {[%emt 0:00:48]} 17. fxe3 {[%emt 0:00:03]} Qg5 {[%emt 0:06:22][%csl LRe3,LRg4] Weighted Error Value: White=0.11 (very precise) /Black=0.17 (very precise) .  Mistake:       	---       	Black=1      Inaccurate:     	White=1     	Black=1      OK:         	White=1     	Black=4      Best:        	White=2     	---} 1/2-1/2

[Event "US Masters 2024"]
[Site "Charlotte"]
[Date "2024.11.30"]
[Round "5.17"]
[White "Zhou, Liran"]
[Black "Mitrabha, Guha"]
[Result "0-1"]
[ECO "B10"]
[WhiteElo "2390"]
[BlackElo "2511"]
[Annotator "RC"]
[PlyCount "54"]
[EventDate "2024.09.23"]
[EventType "swiss"]
[EventCountry "USA"]
[SourceTitle "playchess.com"]
[Source "ChessBase"]
[SourceQuality "1"]
[TimeControl "5400+30"]

1. e4 {[%emt 0:00:12]} c6 {[%emt 0:08:50]} 2. Nf3 {[%emt 0:00:13]} d5 {[%emt 0:00:05]} 3. d3 {[%emt 0:00:03]} g6 {[%emt 0:00:05]} 4. e5 {[%emt 0:01:14]} Bg7 {[%emt 0:00:02]} 5. d4 {[%emt 0:00:37]} f6 {[%emt 0:00:02]} 6. c4 {[%emt 0:13:34]} fxe5 {[%emt 0:04:27]} 7. Nxe5 {[%emt 0:00:49]} Nf6 {[%emt 0:03:08]} 8. cxd5 {[%emt 0:02:54]} cxd5 {[%emt 0:00:35]} 9. Bb5+ {[%emt 0:01:24]} Bd7 {[%emt 0:02:01]} 10. Nxd7 {[%emt 0:08:35]} Nfxd7 {[%emt 0:00:42]} 11. Nc3 {[%emt 0:07:07]} Nc6 {[%emt 0:04:04]} 12. Nxd5 {[%emt 0:06:40]} Nxd4 {[%emt 0:00:37]} 13. Bh6 {[%emt 0:18:43]} Be5 {[%emt 0:06:45]} 14. a4 {[%emt 0:09:38]} a6 {[%emt 0:11:58]} 15. f4 {[%emt 0:04:55]} axb5 {[%emt 0:00:55]} 16. fxe5 {[%emt 0:00:07]} Nf5 {[%emt 0:00:04]} 17. Bg5 {[%emt 0:03:53]} Nb6 {[%emt 0:03:19]} 18. Nc3 {[%emt 0:03:06]} h6 {[%emt 0:02:14]} 19. Bd2 {[%emt 0:02:24]} Qd4 {[%emt 0:02:27]} 20. Nxb5 {[%emt 0:01:27]} Qh4+ {[%emt 0:00:12]} 21. g3 {[%emt 0:00:54]} Qe4+ {[%emt 0:00:18]} 22. Kf2 {[%emt 0:00:04]} O-O {[%emt 0:00:51]} 23. Bf4 {[%emt 0:00:29]} Nh4 {[%emt 0:02:08]} 24. Qb3+ {[%emt 0:02:29]} Nc4 {[%emt 0:00:19]} 25. Rhc1 {[%emt 0:06:52]} Rxf4+ {[%emt 0:01:29]} 26. gxf4 {[%emt 0:00:04]} Qg2+ {[%emt 0:00:08]} 27. Ke1 {[%emt 0:00:03]} Nf3+ {[%emt 0:00:06]} 0-1

[Event "US Masters 2024"]
[Site "Charlotte"]
[Date "2024.11.30"]
[Round "5.18"]
[White "Can, Isik"]
[Black "De Silva, L M S T"]
[Result "1-0"]
[ECO "C68"]
[WhiteElo "2508"]
[BlackElo "2370"]
[Annotator "TA"]
[PlyCount "55"]
[EventDate "2024.09.23"]
[EventType "swiss"]
[EventCountry "USA"]
[SourceTitle "playchess.com"]
[Source "ChessBase"]
[SourceQuality "1"]
[TimeControl "5400+30"]

{[%evp 13,55,12,0,0,0,0,19,10,20,6,44,21,38,41,62,68,77,71,85,81,94,87,97,79,98,87,88,76,87,83,211,219,418,415,475,292,1224,1262,2006,1407,4163,3522,29990,29991]} 1. e4 {[%emt 0:07:54]} e5 {[%emt 0:01:01]} 2. Nf3 {[%emt 0:00:05]} Nc6 {[%emt 0:00:12]} 3. Bb5 {[%emt 0:00:05]} a6 {[%emt 0:00:23]} 4. Bxc6 {[%emt 0:00:04]} dxc6 {[%emt 0:00:36]} 5. Nc3 {[%emt 0:00:05]} Bd6 {[%emt 0:02:26]} 6. d4 {[%emt 0:00:10]} exd4 {[%emt 0:03:02]} 7. Qxd4 {[%emt 0:00:37]} f6 {[%emt 0:00:40]} 8. Ne2 {[%emt 0:00:02]} Ne7 {[%emt 0:03:15]} 9. Bf4 {[%emt 0:01:23]} Ng6 {[%emt 0:10:56]} 10. Bxd6 {[%emt 0:09:37] The position is equal.} Qxd6 {[%emt 0:01:30]} 11. O-O-O {[%emt 0:00:11]} Qe7 {[%emt 0:04:51]} 12. h4 {[%emt 0:15:41][%cal Bh2h4,Bh4h5,Bh5h6][%mdl 32]} Bg4 {[%emt 0:05:48]} 13. Qe3 $36 {[%emt 0:03:09][%mdl 2048] White is more active.} O-O {[%emt 0:08:27]} 14. h5 {[%emt 0:09:16]} Ne5 {[%emt 0:01:25]} 15. h6 {[%emt 0:01:09]} g6 {[%emt 0:02:50]} 16. Nxe5 {[%emt 0:00:37]} Qxe5 {[%emt 0:00:41]} 17. f3 {[%emt 0:09:47][%cal Bf2f3,Bf3f4][%mdl 32]} Be6 {[%emt 0:00:37]} 18. f4 {[%emt 0:06:51]} Qa5 {[%emt 0:01:35]} 19. a3 {[%emt 0:01:25][%cal Of4f5]} Rae8 {[%emt 0:05:57]} 20. Nc3 {[%emt 0:08:27]} Bg4 {[%emt 0:18:17]} 21. Rd2 {[%emt 0:02:58]} Qb6 {[%emt 0:03:50] [#]} (21... Bc8 $16 22. Nd1 Qb6) 22. Qg3 $1 $18 {[%emt 0:03:05]} f5 {[%emt 0:01:35]} (22... Bc8 23. f5 g5) 23. b4 {[%emt 0:06:30]} Rf7 {[%emt 0:04:46]} 24. Re1 {[%emt 0:02:23] Hoping for exf5.} Ref8 $2 {[%emt 0:08:36]} (24... c5 25. Nd5 Qe6) 25. e5 {[%emt 0:02:46] Strongly threatening e6.} Re7 {[%emt 0:04:19] Black is weak on the dark squares} 26. Na4 {[%emt 0:02:19]} Qa7 {[%emt 0:00:26]} 27. Qh4 {[%emt 0:00:40]} Rfe8 {[%emt 0:01:15] [#]} 28. Rd8 $3 {[%emt 0:00:35][%mdl 512] White took control after the opening.   Weighted Error Value: White=0.14 (very precise) /Black=0.64.  Mistake:       	---       	Black=3      Inaccurate:     	White=1     	Black=2      OK:         	White=8     	Black=6      Best:        	White=1     	---        Strong:       	White=1     	---} 1-0

[Event "US Masters 2024"]
[Site "Charlotte"]
[Date "2024.11.30"]
[Round "5.19"]
[White "Kaplan, Avi Harrison"]
[Black "Fernandez, Daniel Howard"]
[Result "1/2-1/2"]
[ECO "A04"]
[WhiteElo "2317"]
[BlackElo "2503"]
[Annotator "RC"]
[PlyCount "140"]
[EventDate "2024.09.23"]
[EventType "swiss"]
[EventCountry "USA"]
[SourceTitle "playchess.com"]
[Source "ChessBase"]
[SourceQuality "1"]
[TimeControl "5400+30"]

1. Nf3 {[%emt 0:00:02]} c5 {[%emt 0:11:45]} 2. b3 {[%emt 0:00:06]} b6 {[%emt 0:01:29]} 3. Bb2 {[%emt 0:00:37]} Bb7 {[%emt 0:00:03]} 4. g3 {[%emt 0:00:08]} Bxf3 {[%emt 0:02:08]} 5. exf3 {[%emt 0:00:07]} Nc6 {[%emt 0:00:36]} 6. Bg2 {[%emt 0:02:10]} e6 {[%emt 0:00:02]} 7. O-O {[%emt 0:00:28]} Nf6 {[%emt 0:03:49]} 8. f4 {[%emt 0:00:57]} Rc8 {[%emt 0:00:03]} 9. d3 {[%emt 0:01:45]} g6 {[%emt 0:00:09]} 10. Nd2 {[%emt 0:00:32]} Bg7 {[%emt 0:00:04]} 11. Nf3 {[%emt 0:00:14]} O-O {[%emt 0:01:47]} 12. Re1 {[%emt 0:02:12]} Ne8 {[%emt 0:04:46]} 13. Bxg7 {[%emt 0:13:38]} Nxg7 {[%emt 0:00:37]} 14. a3 {[%emt 0:02:16]} b5 {[%emt 0:04:50]} 15. Qd2 {[%emt 0:07:31]} Nf5 {[%emt 0:00:13]} 16. c3 {[%emt 0:12:34]} a5 {[%emt 0:00:12]} 17. Ne5 {[%emt 0:04:42]} Nxe5 {[%emt 0:00:12]} 18. fxe5 {[%emt 0:00:47]} d6 {[%emt 0:00:02]} 19. Be4 {[%emt 0:20:26]} Ne7 {[%emt 0:00:03]} 20. Qf4 {[%emt 0:00:36]} dxe5 {[%emt 0:01:15]} 21. Qxe5 {[%emt 0:00:11]} Qc7 {[%emt 0:00:17]} 22. Qf6 {[%emt 0:01:02]} Rfd8 {[%emt 0:00:12]} 23. g4 {[%emt 0:02:37]} Nd5 {[%emt 0:04:13]} 24. Bxd5 {[%emt 0:05:06]} Rxd5 {[%emt 0:00:03]} 25. Rxe6 {[%emt 0:03:36]} Qd7 {[%emt 0:00:02]} 26. Re4 {[%emt 0:00:56]} Rxd3 {[%emt 0:00:14]} 27. Rae1 {[%emt 0:01:19]} Rd1 {[%emt 0:01:27]} 28. Qf3 {[%emt 0:01:34]} Rd8 {[%emt 0:07:56]} 29. Rxd1 {[%emt 0:03:50]} Qxd1+ {[%emt 0:00:04]} 30. Qxd1 {[%emt 0:00:08]} Rxd1+ {[%emt 0:00:08]} 31. Kg2 {[%emt 0:00:01]} Rb1 {[%emt 0:01:26]} 32. Re5 {[%emt 0:01:38]} Rxb3 {[%emt 0:02:35]} 33. Rxc5 {[%emt 0:00:49]} a4 {[%emt 0:00:02]} 34. g5 {[%emt 0:01:13]} Kf8 {[%emt 0:06:24]} 35. c4 {[%emt 0:03:04]} bxc4 {[%emt 0:00:03]} 36. Rxc4 {[%emt 0:00:03]} Rxa3 {[%emt 0:00:08]} 37. h4 {[%emt 0:00:34]} Ra1 {[%emt 0:00:23]} 38. Rc8+ {[%emt 0:02:46]} Ke7 {[%emt 0:00:10]} 39. Ra8 {[%emt 0:00:03]} a3 {[%emt 0:00:26]} 40. Ra7+ {[%emt 0:01:21]} Ke6 {[%emt 0:00:06]} 41. Ra6+ {[%emt 0:00:31]} Kf5 {[%emt 0:04:13]} 42. Ra4 {[%emt 0:00:10]} Ke5 {[%emt 0:02:37]} 43. Ra7 {[%emt 0:01:22]} Ke6 {[%emt 0:00:27]} 44. Ra6+ {[%emt 0:00:52]} Kf5 {[%emt 0:00:50]} 45. Ra4 {[%emt 0:00:05]} a2 {[%emt 0:00:09]} 46. Kh2 {[%emt 0:01:25]} Ke5 {[%emt 0:00:20]} 47. Kg2 {[%emt 0:00:06]} f5 {[%emt 0:00:09]} 48. gxf6 {[%emt 0:00:30]} Kxf6 {[%emt 0:00:03]} 49. Ra5 {[%emt 0:00:07]} Ke6 {[%emt 0:00:59]} 50. Kh2 {[%emt 0:00:28]} Kd6 {[%emt 0:00:02]} 51. Kg2 {[%emt 0:00:08]} Kc6 {[%emt 0:00:06]} 52. Ra8 {[%emt 0:00:55]} Kd5 {[%emt 0:00:08]} 53. Ra4 {[%emt 0:00:34]} Kc5 {[%emt 0:00:13]} 54. Ra8 {[%emt 0:00:21]} Kc4 {[%emt 0:00:09]} 55. Rc8+ {[%emt 0:00:19]} Kd4 {[%emt 0:00:09]} 56. Ra8 {[%emt 0:00:03]} Ke4 {[%emt 0:00:20]} 57. Ra4+ {[%emt 0:00:45]} Kf5 {[%emt 0:00:01]} 58. Kh2 {[%emt 0:01:53]} h6 {[%emt 0:02:02]} 59. Kg2 {[%emt 0:00:29]} g5 {[%emt 0:00:14]} 60. Ra5+ {[%emt 0:00:44]} Kg4 {[%emt 0:00:21]} 61. hxg5 {[%emt 0:00:06]} hxg5 {[%emt 0:00:04]} 62. Ra8 {[%emt 0:00:05]} Kh5 {[%emt 0:00:36]} 63. Ra7 {[%emt 0:00:14]} g4 {[%emt 0:00:09]} 64. Ra8 {[%emt 0:00:06]} Kg5 {[%emt 0:00:09]} 65. Ra7 {[%emt 0:00:07]} Kf5 {[%emt 0:00:06]} 66. Ra8 {[%emt 0:00:04]} Ke4 {[%emt 0:00:05]} 67. Ra7 {[%emt 0:00:06]} Kd3 {[%emt 0:00:05]} 68. Ra8 {[%emt 0:00:08]} Kc2 {[%emt 0:00:05]} 69. Rc8+ {[%emt 0:00:05]} Kb3 {[%emt 0:00:06]} 70. Rb8+ {[%emt 0:00:03]} Kc3 {[%emt 0:00:06]} 1/2-1/2

[Event "US Masters 2024"]
[Site "Charlotte"]
[Date "2024.11.30"]
[Round "5.20"]
[White "Rodrigue-Lemieux, Shawn"]
[Black "Lin, Bryan Enming"]
[Result "1-0"]
[ECO "C54"]
[WhiteElo "2496"]
[BlackElo "2368"]
[Annotator "RC"]
[PlyCount "133"]
[EventDate "2024.09.23"]
[EventType "swiss"]
[EventCountry "USA"]
[SourceTitle "playchess.com"]
[Source "ChessBase"]
[SourceQuality "1"]
[TimeControl "5400+30"]

1. e4 {[%emt 0:06:04]} e5 {[%emt 0:00:23]} 2. Nf3 {[%emt 0:00:53]} Nc6 {[%emt 0:00:08]} 3. Bc4 {[%emt 0:01:00]} Nf6 {[%emt 0:00:30]} 4. d3 {[%emt 0:00:09]} Bc5 {[%emt 0:00:11]} 5. c3 {[%emt 0:00:23]} d6 {[%emt 0:00:12]} 6. O-O {[%emt 0:00:15]} a5 {[%emt 0:00:08]} 7. Re1 {[%emt 0:01:05]} O-O {[%emt 0:00:42]} 8. h3 {[%emt 0:00:27]} h6 {[%emt 0:00:11]} 9. Nbd2 {[%emt 0:01:21]} a4 {[%emt 0:00:28]} 10. Nf1 {[%emt 0:02:51]} Bd7 {[%emt 0:03:13]} 11. a3 {[%emt 0:02:11]} Re8 {[%emt 0:03:23]} 12. Ng3 {[%emt 0:01:03]} Na5 {[%emt 0:02:33]} 13. Ba2 {[%emt 0:00:33]} b5 {[%emt 0:00:52]} 14. d4 {[%emt 0:03:10]} Bb6 {[%emt 0:00:56]} 15. Be3 {[%emt 0:07:52]} c5 {[%emt 0:09:59]} 16. d5 {[%emt 0:08:44]} c4 {[%emt 0:01:24]} 17. Qd2 {[%emt 0:05:46]} Bxe3 {[%emt 0:02:41]} 18. Qxe3 {[%emt 0:03:22]} Nh7 {[%emt 0:02:17]} 19. Rf1 {[%emt 0:03:10]} Qf6 {[%emt 0:03:04]} 20. Rae1 {[%emt 0:05:21]} Nb7 {[%emt 0:02:36]} 21. Bb1 {[%emt 0:01:23]} Rac8 {[%emt 0:03:13]} 22. Nh2 {[%emt 0:02:08]} Qe7 {[%emt 0:11:34]} 23. f4 {[%emt 0:04:52]} f6 {[%emt 0:02:16]} 24. Nf3 {[%emt 0:01:44]} g5 {[%emt 0:02:49]} 25. fxg5 {[%emt 0:37:13]} fxg5 {[%emt 0:01:05]} 26. Nh2 {[%emt 0:00:00]} Nc5 {[%emt 0:07:58]} 27. Ng4 {[%emt 0:00:00]} Bxg4 {[%emt 0:00:22]} 28. hxg4 {[%emt 0:00:00]} Rf8 {[%emt 0:00:09]} 29. Rf5 {[%emt 0:00:00]} Qg7 {[%emt 0:12:07]} 30. Ref1 {[%emt 0:00:00]} Qe7 {[%emt 0:02:07]} 31. Bc2 {[%emt 0:00:00]} Rce8 {[%emt 0:01:31]} 32. Qf2 {[%emt 0:00:00]} Rd8 {[%emt 0:03:46]} 33. Qf3 {[%emt 0:00:00]} Nd7 {[%emt 0:04:24]} 34. Kf2 {[%emt 0:00:00]} Rf6 {[%emt 0:02:32]} 35. Rxf6 {[%emt 0:00:00]} Nhxf6 {[%emt 0:00:39]} 36. Nf5 {[%emt 0:00:00]} Qf8 {[%emt 0:00:11]} 37. Rh1 {[%emt 0:00:00]} Kh7 {[%emt 0:00:24]} 38. Nxh6 {[%emt 0:00:00]} Qxh6 {[%emt 0:00:46]} 39. Qf5+ {[%emt 0:00:00]} Kg7 {[%emt 0:00:04]} 40. Rxh6 {[%emt 0:00:00]} Kxh6 {[%emt 0:00:05]} 41. Qe6 {[%emt 0:00:00]} Kg6 {[%emt 0:03:03]} 42. Qxd6 {[%emt 0:00:00]} Rc8 {[%emt 0:01:20]} 43. Qa6 {[%emt 0:00:00]} Rc5 {[%emt 0:00:26]} 44. Kf3 {[%emt 0:00:00]} Kf7 {[%emt 0:00:31]} 45. Qa8 {[%emt 0:00:00]} Kg7 {[%emt 0:00:48]} 46. Bxa4 {[%emt 0:00:00]} bxa4 {[%emt 0:00:04]} 47. Qxa4 {[%emt 0:00:00]} Rc7 {[%emt 0:01:20]} 48. Qb5 {[%emt 0:00:00]} Kf7 {[%emt 0:02:03]} 49. a4 {[%emt 0:00:00]} Ne8 {[%emt 0:01:49]} 50. Qa6 {[%emt 0:00:00]} Nef6 {[%emt 0:00:23]} 51. a5 {[%emt 0:00:00]} Rc5 {[%emt 0:01:12]} 52. Qe6+ {[%emt 0:00:00]} Kg6 {[%emt 0:00:50]} 53. a6 {[%emt 0:00:00]} Rb5 {[%emt 0:00:47]} 54. Qc6 {[%emt 0:00:00]} Rxb2 {[%emt 0:00:51]} 55. a7 {[%emt 0:00:00]} Nb6 {[%emt 0:00:12]} 56. Qxb6 {[%emt 0:00:00]} Rxb6 {[%emt 0:00:04]} 57. a8=Q {[%emt 0:00:00]} Rb3 {[%emt 0:00:06]} 58. Qa5 {[%emt 0:00:26]} Rb1 {[%emt 0:00:10]} 59. d6 {[%emt 0:01:57]} Nd7 {[%emt 0:02:18]} 60. Qc7 {[%emt 0:01:22]} Rf1+ {[%emt 0:00:37]} 61. Ke2 {[%emt 0:00:09]} Rf7 {[%emt 0:00:04]} 62. Qxc4 {[%emt 0:00:10]} Kf6 {[%emt 0:00:12]} 63. Qb5 {[%emt 0:01:38]} Nf8 {[%emt 0:00:35]} 64. Qc6 {[%emt 0:00:57]} Rd7 {[%emt 0:00:39]} 65. c4 {[%emt 0:00:13]} Rd8 {[%emt 0:00:06]} 66. Qc7 {[%emt 0:00:27]} Rd7 {[%emt 0:00:07]} 67. c5 {[%emt 0:00:15]} 1-0